[Event "Titled Tuesday Blitz June 20 Late 2023"]
[White "Fishbein, Alexander"]
[Black "Erdogmus, Yagiz Kaan"]
[WhiteFideId "2000377"]
[BlackFideId "44599790"]
[WhiteElo "2403"]
[BlackElo "2359"]
[Result "1-0"]
[Round "7"]
[TimeControl "180+2"]
[Date "2023.06.20"]
[WhiteClock "0:00:50"]
[BlackClock "0:00:51"]
[Board "51"]

1. e4 {[%clk 0:03:00]}  c5 {[%clk 0:02:59]} 2. Nf3 {[%clk 0:02:59]}  d6 {[%clk 0:02:59]} 3. d4 {[%clk 0:02:59]}  cxd4 {[%clk 0:03:00]} 4. Nxd4 {[%clk 0:02:59]}  Nf6 {[%clk 0:03:00]} 5. Nc3 {[%clk 0:02:59]}  a6 {[%clk 0:03:01]} 6. a4 {[%clk 0:02:56]}  e5 {[%clk 0:03:00]} 7. Nf3 {[%clk 0:02:56]}  h6 {[%clk 0:03:01]} 8. Bc4 {[%clk 0:02:55]}  Be7 {[%clk 0:02:59]} 9. O-O {[%clk 0:02:54]}  Be6 {[%clk 0:02:59]} 10. Qe2 {[%clk 0:02:53]}  Nbd7 {[%clk 0:02:59]} 11. Bxe6 {[%clk 0:02:51]}  fxe6 {[%clk 0:03:00]} 12. Qc4 {[%clk 0:02:50]}  Kf7 {[%clk 0:02:53]} 13. Be3 {[%clk 0:02:47]}  Ng4 {[%clk 0:02:47]} 14. Rad1 {[%clk 0:02:43]}  Qc8 {[%clk 0:02:38]} 15. Qb3 {[%clk 0:02:41]}  Rf8 {[%clk 0:02:29]} 16. h3 {[%clk 0:02:38]}  Nxe3 {[%clk 0:02:28]} 17. fxe3 {[%clk 0:02:37]}  Nf6 {[%clk 0:02:23]} 18. a5 {[%clk 0:02:25]}  Qc5 {[%clk 0:02:21]} 19. Na4 {[%clk 0:02:18]}  Qxa5 {[%clk 0:02:19]} 20. Nb6 {[%clk 0:02:16]}  Rad8 {[%clk 0:02:14]} 21. Nc4 {[%clk 0:02:09]}  Qb5 {[%clk 0:02:08]} 22. Qa2 {[%clk 0:01:55]}  Qc5 {[%clk 0:02:00]} 23. Kh2 {[%clk 0:01:52]}  b5 {[%clk 0:01:57]} 24. Na5 {[%clk 0:01:47]}  Qxe3 {[%clk 0:01:50]} 25. Nc6 {[%clk 0:01:47]}  Rde8 {[%clk 0:01:36]} 26. Nfxe5+ {[%clk 0:01:41]}  dxe5 {[%clk 0:01:34]} 27. Nxe5+ {[%clk 0:01:39]}  Kg8 {[%clk 0:01:35]} 28. Qxe6+ {[%clk 0:01:38]}  Kh8 {[%clk 0:01:34]} 29. Ng6+ {[%clk 0:01:30]}  Kh7 {[%clk 0:01:33]} 30. Nxe7 {[%clk 0:01:29]}  Qxe4 {[%clk 0:01:18]} 31. Rxf6 {[%clk 0:01:20]}  Qxc2 {[%clk 0:01:15]} 32. Rxf8 {[%clk 0:01:16]}  Rxf8 {[%clk 0:01:13]} 33. Re1 {[%clk 0:01:13]}  Re8 {[%clk 0:00:55]} 34. Qe4+ {[%clk 0:01:08]}  Qxe4 {[%clk 0:00:53]} 35. Rxe4 {[%clk 0:01:09]}  a5 {[%clk 0:00:52]} 36. Re5 {[%clk 0:01:09]}  a4 {[%clk 0:00:52]} 37. Nc6 {[%clk 0:01:09]}  Rxe5 {[%clk 0:00:51]} 38. Nxe5 {[%clk 0:01:09]}  b4 {[%clk 0:00:51]} 39. Nc4 {[%clk 0:01:06]}  Kg6 {[%clk 0:00:50]} 40. Kg3 {[%clk 0:01:06]}  Kf5 {[%clk 0:00:51]} 41. Kf3 {[%clk 0:01:06]}  g5 {[%clk 0:00:48]} 42. g4+ {[%clk 0:01:06]}  Kg6 {[%clk 0:00:49]} 43. Ke4 {[%clk 0:01:06]}  h5 {[%clk 0:00:49]} 44. Ke5 {[%clk 0:01:06]}  hxg4 {[%clk 0:00:49]} 45. hxg4 {[%clk 0:01:06]}  Kf7 {[%clk 0:00:48]} 46. Kd4 {[%clk 0:01:02]}  Ke6 {[%clk 0:00:47]} 47. Kc5 {[%clk 0:00:59]}  a3 {[%clk 0:00:47]} 48. Nxa3 {[%clk 0:00:50]}  bxa3 {[%clk 0:00:48]} 49. bxa3 {[%clk 0:00:50]}  Ke5 {[%clk 0:00:48]} 50. a4 {[%clk 0:00:50]}  Kf4 {[%clk 0:00:49]} 51. a5 {[%clk 0:00:50]}  Kxg4 {[%clk 0:00:50]} 52. a6 {[%clk 0:00:50]}  Kh3 {[%clk 0:00:51]} 53. a7 {[%clk 0:00:50]}  g4 {[%clk 0:00:52]} 54. a8=Q {[%clk 0:00:51]}  g3 {[%clk 0:00:53]} 55. Qh1+ {[%clk 0:00:50]}  Kg4 {[%clk 0:00:53]} 56. Qg2 {[%clk 0:00:50]}  Kf4 {[%clk 0:00:51]} 57. Kd4 {[%clk 0:00:50]} 1-0


[Site "https://www.chess.com"]

[Event "Titled Tuesday Blitz June 20 Late 2023"]
[White "Turayev, Shahruh"]
[Black "Maiti, Milind"]
[WhiteFideId "14003856"]
[BlackFideId "2090767"]
[WhiteElo "2113"]
[BlackElo "2150"]
[Result "1-0"]
[Round "7"]
[TimeControl "180+2"]
[Date "2023.06.20"]
[WhiteClock "0:01:35"]
[BlackClock "0:00:29"]
[Board "54"]

1. e4 {[%clk 0:03:00]}  c5 {[%clk 0:02:59]} 2. Nc3 {[%clk 0:02:59]}  e6 {[%clk 0:02:59]} 3. g3 {[%clk 0:02:59]}  d5 {[%clk 0:02:56]} 4. exd5 {[%clk 0:03:00]}  exd5 {[%clk 0:02:57]} 5. d4 {[%clk 0:03:00]}  Nc6 {[%clk 0:02:38]} 6. Nge2 {[%clk 0:02:59]}  Bg4 {[%clk 0:02:28]} 7. dxc5 {[%clk 0:02:55]}  Bf3 {[%clk 0:02:21]} 8. Rg1 {[%clk 0:02:54]}  Bxc5 {[%clk 0:02:18]} 9. Bg2 {[%clk 0:02:46]}  Bxg2 {[%clk 0:02:15]} 10. Rxg2 {[%clk 0:02:47]}  Nf6 {[%clk 0:02:14]} 11. Bg5 {[%clk 0:02:46]}  O-O {[%clk 0:02:09]} 12. Bxf6 {[%clk 0:02:39]}  Qxf6 {[%clk 0:02:09]} 13. Qxd5 {[%clk 0:02:38]}  Bb6 {[%clk 0:02:04]} 14. O-O-O {[%clk 0:02:33]}  Rad8 {[%clk 0:02:04]} 15. Qh5 {[%clk 0:02:00]}  Rxd1+ {[%clk 0:01:56]} 16. Nxd1 {[%clk 0:02:00]}  Rd8 {[%clk 0:01:56]} 17. Nec3 {[%clk 0:01:53]}  Qd4 {[%clk 0:01:51]} 18. f4 {[%clk 0:01:49]}  Nb4 {[%clk 0:01:18]} 19. a3 {[%clk 0:01:38]}  Nd5 {[%clk 0:00:29]} 20. Rd2 {[%clk 0:01:35]} 1-0


[Site "https://www.chess.com"]

[Event "Titled Tuesday Blitz June 20 Late 2023"]
[White "Sreyas Payyappat"]
[Black "Fernandez Guillen, Ernesto J."]
[WhiteFideId "46674969"]
[BlackFideId "3512428"]
[WhiteElo "2043"]
[BlackElo "2434"]
[Result "1-0"]
[Round "7"]
[TimeControl "180+2"]
[Date "2023.06.20"]
[WhiteClock "0:00:13"]
[BlackClock "0:00:18"]
[Board "55"]

1. e4 {[%clk 0:03:00]}  e5 {[%clk 0:02:22]} 2. Nf3 {[%clk 0:02:59]}  Nc6 {[%clk 0:02:22]} 3. Bc4 {[%clk 0:02:58]}  g6 {[%clk 0:02:22]} 4. d4 {[%clk 0:02:57]}  exd4 {[%clk 0:02:23]} 5. Nxd4 {[%clk 0:02:58]}  Bg7 {[%clk 0:02:23]} 6. Be3 {[%clk 0:02:57]}  Nge7 {[%clk 0:02:23]} 7. Nc3 {[%clk 0:02:55]}  O-O {[%clk 0:02:23]} 8. Qd2 {[%clk 0:02:54]}  Ne5 {[%clk 0:02:23]} 9. Be2 {[%clk 0:02:51]}  d5 {[%clk 0:02:23]} 10. O-O-O {[%clk 0:02:47]}  c5 {[%clk 0:02:23]} 11. Nb3 {[%clk 0:02:30]}  d4 {[%clk 0:02:14]} 12. Nxc5 {[%clk 0:01:24]}  N5c6 {[%clk 0:02:11]} 13. Bg5 {[%clk 0:01:23]}  f6 {[%clk 0:01:51]} 14. Bc4+ {[%clk 0:01:12]}  Kh8 {[%clk 0:01:50]} 15. Bf4 {[%clk 0:00:46]}  Qa5 {[%clk 0:01:50]} 16. N3a4 {[%clk 0:00:42]}  Qd8 {[%clk 0:01:36]} 17. Nb3 {[%clk 0:00:38]}  f5 {[%clk 0:01:34]} 18. e5 {[%clk 0:00:37]}  a6 {[%clk 0:01:29]} 19. Nxd4 {[%clk 0:00:33]}  Nxd4 {[%clk 0:01:29]} 20. Qxd4 {[%clk 0:00:33]}  Qxd4 {[%clk 0:01:30]} 21. Rxd4 {[%clk 0:00:33]}  Nc6 {[%clk 0:01:14]} 22. Rd6 {[%clk 0:00:31]}  Nxe5 {[%clk 0:01:12]} 23. Nb6 {[%clk 0:00:26]}  Nxc4 {[%clk 0:01:11]} 24. Nxc4 {[%clk 0:00:26]}  b5 {[%clk 0:01:07]} 25. Nb6 {[%clk 0:00:26]}  Ra7 {[%clk 0:01:07]} 26. Rhd1 {[%clk 0:00:26]}  Raf7 {[%clk 0:00:53]} 27. Rd8 {[%clk 0:00:24]}  Bb7 {[%clk 0:00:52]} 28. Rxf8+ {[%clk 0:00:19]}  Rxf8 {[%clk 0:00:53]} 29. f3 {[%clk 0:00:18]}  h6 {[%clk 0:00:50]} 30. Rd7 {[%clk 0:00:18]}  Bc6 {[%clk 0:00:49]} 31. Rd6 {[%clk 0:00:18]}  Rf6 {[%clk 0:00:49]} 32. Rd8+ {[%clk 0:00:15]}  Kh7 {[%clk 0:00:49]} 33. Be5 {[%clk 0:00:15]}  Re6 {[%clk 0:00:50]} 34. Bxg7 {[%clk 0:00:14]}  Kxg7 {[%clk 0:00:51]} 35. Rc8 {[%clk 0:00:15]}  Kf6 {[%clk 0:00:50]} 36. Kd2 {[%clk 0:00:14]}  h5 {[%clk 0:00:49]} 37. Rc7 {[%clk 0:00:14]}  h4 {[%clk 0:00:49]} 38. Nd7+ {[%clk 0:00:13]}  Kg5 {[%clk 0:00:47]} 39. Nf8 {[%clk 0:00:12]}  Rd6+ {[%clk 0:00:47]} 40. Ke3 {[%clk 0:00:13]}  f4+ {[%clk 0:00:46]} 41. Ke2 {[%clk 0:00:12]}  Bd5 {[%clk 0:00:46]} 42. Rc5 {[%clk 0:00:11]}  Kf6 {[%clk 0:00:45]} 43. Nh7+ {[%clk 0:00:11]}  Ke5 {[%clk 0:00:36]} 44. Ng5 {[%clk 0:00:11]}  Kd4 {[%clk 0:00:37]} 45. b4 {[%clk 0:00:11]}  Bc4+ {[%clk 0:00:26]} 46. Kf2 {[%clk 0:00:11]}  Rd5 {[%clk 0:00:24]} 47. Ne4 {[%clk 0:00:08]}  Rxc5 {[%clk 0:00:22]} 48. bxc5 {[%clk 0:00:09]}  Bxa2 {[%clk 0:00:21]} 49. c6 {[%clk 0:00:09]}  Be6 {[%clk 0:00:21]} 50. c7 {[%clk 0:00:08]}  Kd5 {[%clk 0:00:20]} 51. Ng5 {[%clk 0:00:06]}  Kc6 {[%clk 0:00:20]} 52. Nxe6 {[%clk 0:00:05]}  Kd7 {[%clk 0:00:19]} 53. Nxf4 {[%clk 0:00:05]}  Kxc7 {[%clk 0:00:19]} 54. Nxg6 {[%clk 0:00:06]}  a5 {[%clk 0:00:19]} 55. Ke2 {[%clk 0:00:06]}  Kd7 {[%clk 0:00:19]} 56. Kd2 {[%clk 0:00:07]}  Kd6 {[%clk 0:00:20]} 57. Nxh4 {[%clk 0:00:07]}  Kc5 {[%clk 0:00:20]} 58. Kc3 {[%clk 0:00:08]}  a4 {[%clk 0:00:20]} 59. Nf5 {[%clk 0:00:08]}  b4+ {[%clk 0:00:20]} 60. Kb2 {[%clk 0:00:09]}  Kc4 {[%clk 0:00:21]} 61. Ne3+ {[%clk 0:00:09]}  Kd4 {[%clk 0:00:21]} 62. Nd1 {[%clk 0:00:10]}  a3+ {[%clk 0:00:20]} 63. Kb3 {[%clk 0:00:10]}  Kc5 {[%clk 0:00:20]} 64. c3 {[%clk 0:00:10]}  bxc3 {[%clk 0:00:20]} 65. Nxc3 {[%clk 0:00:11]}  a2 {[%clk 0:00:21]} 66. Nxa2 {[%clk 0:00:12]}  Kd4 {[%clk 0:00:18]} 67. h4 {[%clk 0:00:13]} 1-0


[Site "https://www.chess.com"]

[Event "Titled Tuesday Blitz June 20 Late 2023"]
[White "Timmermans, Mark"]
[Black "WindWhistler11"]
[WhiteFideId "1026399"]
[WhiteElo "2460"]
[BlackElo "2553"]
[Result "0-1"]
[Round "7"]
[TimeControl "180+2"]
[Date "2023.06.20"]
[WhiteClock "0:01:05"]
[BlackClock "0:00:54"]
[Board "56"]

1. e4 {[%clk 0:03:00]}  e6 {[%clk 0:02:57]} 2. Qe2 {[%clk 0:02:55]}  b6 {[%clk 0:02:49]} 3. g3 {[%clk 0:02:48]}  Bb7 {[%clk 0:02:47]} 4. Bg2 {[%clk 0:02:46]}  c5 {[%clk 0:02:47]} 5. Nf3 {[%clk 0:02:42]}  Nc6 {[%clk 0:02:43]} 6. O-O {[%clk 0:02:36]}  d6 {[%clk 0:02:39]} 7. c3 {[%clk 0:02:36]}  a5 {[%clk 0:02:35]} 8. d4 {[%clk 0:02:36]}  cxd4 {[%clk 0:02:35]} 9. cxd4 {[%clk 0:02:37]}  Ba6 {[%clk 0:02:34]} 10. Qd1 {[%clk 0:02:27]}  Bxf1 {[%clk 0:02:33]} 11. Bxf1 {[%clk 0:02:27]}  Na7 {[%clk 0:02:23]} 12. Nc3 {[%clk 0:02:28]}  Be7 {[%clk 0:02:22]} 13. d5 {[%clk 0:02:20]}  e5 {[%clk 0:02:16]} 14. Be3 {[%clk 0:02:19]}  Nf6 {[%clk 0:02:12]} 15. Qb3 {[%clk 0:02:10]}  Rb8 {[%clk 0:02:05]} 16. Na4 {[%clk 0:02:10]}  Nd7 {[%clk 0:01:54]} 17. Bh3 {[%clk 0:02:03]}  Nc5 {[%clk 0:01:40]} 18. Nxc5 {[%clk 0:02:02]}  bxc5 {[%clk 0:01:38]} 19. Qa4+ {[%clk 0:02:01]}  Kf8 {[%clk 0:01:39]} 20. Qc2 {[%clk 0:01:51]}  Qb6 {[%clk 0:01:33]} 21. b3 {[%clk 0:01:49]}  Nb5 {[%clk 0:01:31]} 22. Nd2 {[%clk 0:01:47]}  Na3 {[%clk 0:01:22]} 23. Qc1 {[%clk 0:01:44]}  Qb4 {[%clk 0:01:21]} 24. Bg2 {[%clk 0:01:38]}  h6 {[%clk 0:01:20]} 25. h4 {[%clk 0:01:37]}  g6 {[%clk 0:01:04]} 26. Nf1 {[%clk 0:01:36]}  Kg7 {[%clk 0:01:04]} 27. Bd2 {[%clk 0:01:36]}  Qd4 {[%clk 0:01:01]} 28. Bc3 {[%clk 0:01:36]}  Qd3 {[%clk 0:00:59]} 29. Bxa5 {[%clk 0:01:14]}  Nc2 {[%clk 0:00:58]} 30. Rb1 {[%clk 0:01:10]}  Nd4 {[%clk 0:00:58]} 31. Qd1 {[%clk 0:01:10]}  Qxd1 {[%clk 0:00:54]} 32. Rxd1 {[%clk 0:01:11]}  Ra8 {[%clk 0:00:54]} 33. Bc3 {[%clk 0:01:08]}  Rxa2 {[%clk 0:00:54]} 34. b4 {[%clk 0:01:05]}  Ne2+ {[%clk 0:00:54]} 0-1


[Site "https://www.chess.com"]

[Event "Titled Tuesday Blitz June 20 Late 2023"]
[White "Haydon, David L"]
[Black "Dushyant Sharma"]
[WhiteFideId "415405"]
[BlackFideId "25065130"]
[WhiteElo "2326"]
[BlackElo "2198"]
[Result "0-1"]
[Round "7"]
[TimeControl "180+2"]
[Date "2023.06.20"]
[WhiteClock "0:00:15"]
[BlackClock "0:00:04"]
[Board "57"]

1. d4 {[%clk 0:02:59]}  d5 {[%clk 0:02:53]} 2. Nc3 {[%clk 0:02:58]}  e6 {[%clk 0:02:46]} 3. Bf4 {[%clk 0:02:57]}  Bd6 {[%clk 0:02:46]} 4. e3 {[%clk 0:02:56]}  f5 {[%clk 0:02:46]} 5. Nf3 {[%clk 0:02:54]}  Nf6 {[%clk 0:02:47]} 6. Ne5 {[%clk 0:02:53]}  O-O {[%clk 0:02:47]} 7. Bd3 {[%clk 0:02:51]}  Ne4 {[%clk 0:02:46]} 8. h4 {[%clk 0:02:50]}  Bb4 {[%clk 0:02:43]} 9. Bxe4 {[%clk 0:02:38]}  fxe4 {[%clk 0:02:43]} 10. Qg4 {[%clk 0:02:36]}  c5 {[%clk 0:02:39]} 11. a3 {[%clk 0:02:31]}  Ba5 {[%clk 0:02:37]} 12. dxc5 {[%clk 0:02:29]}  Bxc3+ {[%clk 0:02:37]} 13. bxc3 {[%clk 0:02:28]}  Nc6 {[%clk 0:02:38]} 14. Nxc6 {[%clk 0:02:26]}  bxc6 {[%clk 0:02:38]} 15. Bd6 {[%clk 0:02:25]}  Rf7 {[%clk 0:02:34]} 16. O-O {[%clk 0:02:21]}  Qf6 {[%clk 0:02:31]} 17. h5 {[%clk 0:02:12]}  Ba6 {[%clk 0:02:30]} 18. Rfb1 {[%clk 0:02:01]}  Qxf2+ {[%clk 0:02:29]} 19. Kh2 {[%clk 0:02:01]}  Qf5 {[%clk 0:02:09]} 20. Qh4 {[%clk 0:01:53]}  Be2 {[%clk 0:01:56]} 21. h6 {[%clk 0:01:50]}  g5 {[%clk 0:01:45]} 22. Qg3 {[%clk 0:01:45]}  Qg6 {[%clk 0:01:34]} 23. Re1 {[%clk 0:01:42]}  Qxh6+ {[%clk 0:01:28]} 24. Kg1 {[%clk 0:01:41]}  Ba6 {[%clk 0:01:28]} 25. Bf4 {[%clk 0:01:39]}  Rf5 {[%clk 0:01:14]} 26. Bd6 {[%clk 0:01:36]}  Qg6 {[%clk 0:01:11]} 27. Rad1 {[%clk 0:01:26]}  h5 {[%clk 0:01:11]} 28. Rd2 {[%clk 0:01:26]}  h4 {[%clk 0:01:10]} 29. Qg4 {[%clk 0:01:26]}  Rd8 {[%clk 0:00:51]} 30. g3 {[%clk 0:01:24]}  Kf7 {[%clk 0:00:40]} 31. Rh2 {[%clk 0:01:17]}  Rg8 {[%clk 0:00:35]} 32. Kh1 {[%clk 0:01:01]}  Qf6 {[%clk 0:00:24]} 33. Rg1 {[%clk 0:00:59]}  Rf1 {[%clk 0:00:20]} 34. Qh5+ {[%clk 0:00:58]}  Kg7 {[%clk 0:00:20]} 35. Rg2 {[%clk 0:00:53]}  hxg3 {[%clk 0:00:20]} 36. Rxf1 {[%clk 0:00:40]}  Qxf1+ {[%clk 0:00:19]} 37. Rg1 {[%clk 0:00:40]}  Qf3+ {[%clk 0:00:17]} 38. Qxf3 {[%clk 0:00:36]}  exf3 {[%clk 0:00:17]} 39. Rxg3 {[%clk 0:00:30]}  f2 {[%clk 0:00:14]} 40. Rxg5+ {[%clk 0:00:24]}  Kf7 {[%clk 0:00:15]} 41. Rxg8 {[%clk 0:00:23]}  f1=Q+ {[%clk 0:00:14]} 42. Rg1 {[%clk 0:00:22]}  Qh3+ {[%clk 0:00:14]} 43. Bh2 {[%clk 0:00:22]}  Be2 {[%clk 0:00:13]} 44. Rg3 {[%clk 0:00:20]}  Qf1+ {[%clk 0:00:10]} 45. Bg1 {[%clk 0:00:20]}  Bf3+ {[%clk 0:00:07]} 46. Kh2 {[%clk 0:00:20]}  Qe2+ {[%clk 0:00:08]} 47. Kh3 {[%clk 0:00:21]}  Be4 {[%clk 0:00:08]} 48. Kh4 {[%clk 0:00:17]}  Bg6 {[%clk 0:00:06]} 49. Rg4 {[%clk 0:00:16]}  Bf5 {[%clk 0:00:04]} 50. Rg3 {[%clk 0:00:16]}  Kf6 {[%clk 0:00:04]} 51. e4 {[%clk 0:00:15]}  Qxe4+ {[%clk 0:00:04]} 52. Kh5 {[%clk 0:00:14]}  Bg6+ {[%clk 0:00:04]} 53. Kh6 {[%clk 0:00:15]}  Qh4# {[%clk 0:00:04]} 0-1


[Site "https://www.chess.com"]

[Event "Titled Tuesday Blitz June 20 Late 2023"]
[White "Adewumi, Tanitoluwa"]
[Black "Ortega Amarelle, Mariano"]
[WhiteFideId "30966396"]
[BlackFideId "3504301"]
[WhiteElo "2670"]
[BlackElo "2392"]
[Result "1-0"]
[Round "7"]
[TimeControl "180+2"]
[Date "2023.06.20"]
[WhiteClock "0:00:05"]
[BlackClock "0:00:05"]
[Board "58"]

1. e4 {[%clk 0:02:57]}  e6 {[%clk 0:02:58]} 2. d4 {[%clk 0:02:55]}  d5 {[%clk 0:02:59]} 3. exd5 {[%clk 0:02:56]}  exd5 {[%clk 0:02:59]} 4. Nf3 {[%clk 0:02:56]}  Nc6 {[%clk 0:02:59]} 5. Nc3 {[%clk 0:02:54]}  Bg4 {[%clk 0:02:58]} 6. Bd3 {[%clk 0:02:50]}  Bb4 {[%clk 0:02:55]} 7. O-O {[%clk 0:02:50]}  Nge7 {[%clk 0:02:55]} 8. h3 {[%clk 0:02:50]}  Bh5 {[%clk 0:02:54]} 9. a3 {[%clk 0:02:45]}  Bxc3 {[%clk 0:02:50]} 10. bxc3 {[%clk 0:02:46]}  Qd7 {[%clk 0:02:48]} 11. a4 {[%clk 0:02:43]}  O-O {[%clk 0:02:46]} 12. Bxh7+ {[%clk 0:02:28]}  Kxh7 {[%clk 0:02:46]} 13. Ng5+ {[%clk 0:02:28]}  Kg6 {[%clk 0:02:46]} 14. g4 {[%clk 0:02:02]}  Bxg4 {[%clk 0:02:37]} 15. hxg4 {[%clk 0:02:02]}  Rh8 {[%clk 0:02:30]} 16. Re1 {[%clk 0:01:55]}  Raf8 {[%clk 0:02:27]} 17. Qd3+ {[%clk 0:01:05]}  f5 {[%clk 0:02:26]} 18. Ne6 {[%clk 0:01:01]}  Rf6 {[%clk 0:01:51]} 19. Nf4+ {[%clk 0:00:54]}  Kh7 {[%clk 0:01:50]} 20. g5 {[%clk 0:00:51]}  Rff8 {[%clk 0:01:48]} 21. Ba3 {[%clk 0:00:50]}  g6 {[%clk 0:01:31]} 22. Re6 {[%clk 0:00:32]}  Rf7 {[%clk 0:01:30]} 23. Rae1 {[%clk 0:00:31]}  Kg7 {[%clk 0:01:25]} 24. Qe3 {[%clk 0:00:19]}  Re8 {[%clk 0:00:20]} 25. Qh3 {[%clk 0:00:18]}  Rh8 {[%clk 0:00:18]} 26. Qe3 {[%clk 0:00:16]}  Re8 {[%clk 0:00:18]} 27. Bxe7 {[%clk 0:00:16]}  Rfxe7 {[%clk 0:00:14]} 28. Rxg6+ {[%clk 0:00:10]}  Kf7 {[%clk 0:00:11]} 29. Rf6+ {[%clk 0:00:10]}  Kg8 {[%clk 0:00:11]} 30. Ne6 {[%clk 0:00:06]}  Nd8 {[%clk 0:00:07]} 31. Rg6+ {[%clk 0:00:06]}  Kf7 {[%clk 0:00:05]} 32. Rg7# {[%clk 0:00:05]} 1-0


[Site "https://www.chess.com"]

[Event "Titled Tuesday Blitz June 20 Late 2023"]
[White "Amburgy, Ryan"]
[Black "Novikov, Evgenij"]
[WhiteFideId "30924820"]
[BlackFideId "4125380"]
[WhiteElo "2134"]
[BlackElo "2242"]
[Result "0-1"]
[Round "7"]
[TimeControl "180+2"]
[Date "2023.06.20"]
[WhiteClock "0:00:02"]
[BlackClock "0:00:19"]
[Board "59"]

1. d4 {[%clk 0:03:00]}  Nf6 {[%clk 0:02:55]} 2. c4 {[%clk 0:03:01]}  e6 {[%clk 0:02:54]} 3. Nf3 {[%clk 0:03:01]}  Bb4+ {[%clk 0:02:54]} 4. Nbd2 {[%clk 0:03:01]}  b6 {[%clk 0:02:54]} 5. a3 {[%clk 0:03:00]}  Be7 {[%clk 0:02:53]} 6. e4 {[%clk 0:03:00]}  d5 {[%clk 0:02:51]} 7. Bd3 {[%clk 0:02:48]}  Bb7 {[%clk 0:02:50]} 8. e5 {[%clk 0:02:40]}  Ne4 {[%clk 0:02:47]} 9. O-O {[%clk 0:02:33]}  O-O {[%clk 0:02:45]} 10. Qc2 {[%clk 0:02:13]}  Nxd2 {[%clk 0:02:24]} 11. Bxd2 {[%clk 0:02:14]}  g6 {[%clk 0:02:18]} 12. c5 {[%clk 0:01:38]}  c6 {[%clk 0:01:25]} 13. b4 {[%clk 0:01:26]}  Ba6 {[%clk 0:01:17]} 14. Rfc1 {[%clk 0:01:19]}  Bxd3 {[%clk 0:01:13]} 15. Qxd3 {[%clk 0:01:20]}  a5 {[%clk 0:00:53]} 16. b5 {[%clk 0:01:12]}  bxc5 {[%clk 0:00:51]} 17. dxc5 {[%clk 0:01:13]}  cxb5 {[%clk 0:00:51]} 18. Nd4 {[%clk 0:01:06]}  Qc7 {[%clk 0:00:41]} 19. Nxb5 {[%clk 0:00:43]}  Qxe5 {[%clk 0:00:40]} 20. c6 {[%clk 0:00:43]}  Nxc6 {[%clk 0:00:37]} 21. f4 {[%clk 0:00:28]}  Qf6 {[%clk 0:00:28]} 22. Rab1 {[%clk 0:00:18]}  Rfc8 {[%clk 0:00:27]} 23. g3 {[%clk 0:00:15]}  h5 {[%clk 0:00:26]} 24. Bc3 {[%clk 0:00:14]}  Qf5 {[%clk 0:00:26]} 25. Qe3 {[%clk 0:00:14]}  Nd8 {[%clk 0:00:24]} 26. Bd4 {[%clk 0:00:14]}  Rab8 {[%clk 0:00:22]} 27. Re1 {[%clk 0:00:08]}  Rc2 {[%clk 0:00:21]} 28. Nd6 {[%clk 0:00:05]}  Qh3 {[%clk 0:00:21]} 29. Qf3 {[%clk 0:00:02]}  Qxh2+ {[%clk 0:00:19]} 0-1


[Site "https://www.chess.com"]